fUST/lending_fUST_20250804
["ID","MTS","AMOUNT","RATE_DAILY","PERIOD"]
[377264069,1754308241641,-151.0,0.0003385,14]
[377264070,1754308241650,-151.0,0.0003385,14]
[377264071,1754308241661,-151.0,0.0003385,14]
[377264072,1754308241680,-151.0,0.0003385,14]
[377264073,1754308241690,-151.0,0.0003385,14]
[377264074,1754308241700,-151.0,0.0003386,14]
[377264075,1754308241709,-239.287922,0.0003386,14]
[377264076,1754308241718,-151.0,0.0003386,14]
[377264077,1754308241728,-151.0,0.0003386,14]
[377264078,1754308241737,-151.0,0.0003386,14]
[377264079,1754308241747,-460.0,0.0003386,2]
[377264080,1754308241758,-151.0,0.0003386,14]
[377264081,1754308241767,-460.0,0.0003386,2]
[377264082,1754308241777,-607.5,0.0003386,2]
[377264083,1754308241786,-656.62,0.0003386,2]
[377264084,1754308241795,-460.0,0.0003386,2]
[377264085,1754308241804,-460.0,0.0003386,2]
[377264086,1754308241814,-16436.53,0.0003386,2]
[377264087,1754308241824,-2737.01,0.00033887,2]
[377264088,1754308241833,-3796.5627805,0.000339,29]
[377264089,1754308241842,-460.0,0.00033932,2]
[377264090,1754308241851,-460.0,0.00033932,2]
[377264091,1754308241860,-460.0,0.00033932,2]
[377264092,1754308241870,-460.0,0.00033932,2]
[377264093,1754308241880,-616.68,0.00033932,2]
[377264094,1754308241889,-460.0,0.00033932,2]
[377264095,1754308241899,-649.19,0.00033932,2]
[377264096,1754308241908,-1117.69,0.00033932,2]
[377264097,1754308241918,-1011.78,0.00033932,2]
[377264098,1754308241927,-1738.71,0.00033932,2]
[377264099,1754308241936,-460.0,0.00033932,2]
[377264100,1754308241946,-460.0,0.00033932,2]
[377264101,1754308241956,-460.0,0.00033932,2]
[377264102,1754308241965,-460.0,0.00033932,2]
[377264103,1754308241975,-460.0,0.00033932,2]
[377264104,1754308241985,-494.54,0.00033932,2]
[377264105,1754308241995,-460.0,0.00033932,2]
[377264106,1754308242004,-610.51,0.00033932,2]
[377264107,1754308242013,-805.44,0.00033932,2]
[377264108,1754308242023,-460.0,0.00033932,2]
[377264109,1754308242032,-624.81,0.00033932,2]
[377264110,1754308242041,-1163.47,0.00033932,2]
[377264111,1754308242050,-1355.16,0.00033932,2]
[377264112,1754308242060,-460.0,0.00033932,2]
[377264113,1754308242070,-558.25,0.00033932,2]
[377264114,1754308242079,-489.89,0.00033932,2]
[377264115,1754308242088,-503.45,0.00033932,2]
[377264116,1754308242098,-1342.8,0.00033932,2]
[377264117,1754308242107,-959.37,0.00033932,2]
[377264118,1754308242116,-460.0,0.00033932,2]
[377264119,1754308242126,-539.31,0.00033932,2]
[377264120,1754308242136,-460.0,0.00033934,2]
[377264121,1754308242145,-460.0,0.00033934,2]
[377264122,1754308242154,-500.41,0.00033934,2]
[377264123,1754308242164,-290.22997543,0.00033934,2]
[377264124,1754308242173,-460.0,0.00033934,2]
[377264125,1754308242182,-460.0,0.00033934,2]
[377264126,1754308242191,-210.81512997,0.00033934,2]
[377264127,1754308242201,-460.0,0.00033934,2]
[377264128,1754308242211,-460.0,0.00033934,2]
[377264129,1754308242220,-460.0,0.00033944,2]
[377264130,1754308242229,-460.0,0.00033944,2]
[377264131,1754308242239,-151.0,0.00033944,14]
[377264132,1754308242248,-154.898647,0.00033944,14]
[377264133,1754308242258,-151.0,0.00033944,14]
[377264134,1754308242268,-151.0,0.00033944,14]
[377264135,1754308242278,-9893.33,0.00033944,2]
[377264136,1754308242389,-212.251218,0.00033944,14]
[377264137,1754308242401,-151.0,0.00033944,14]
[377264138,1754308242411,-512.03,0.00033944,2]
[377264139,1754308242422,-678.4,0.00033944,2]
[377264140,1754308242432,-460.0,0.00033944,2]
[377264141,1754308242443,-3133.21,0.00033944,2]
[377264142,1754308242453,-10030.68,0.00033944,2]
[377264143,1754308242464,-803.44,0.00033944,2]
[377264144,1754308242474,-4739.37,0.00033944,2]
[377264145,1754308242485,-795.49,0.00033944,2]
[377264146,1754308242495,-460.0,0.00033944,2]
[377264147,1754308242506,-460.0,0.00033944,2]
[377264148,1754308242515,-460.0,0.00033944,2]
[377264149,1754308242524,-599.29004528,0.00033944,2]
[377264151,1754308242534,-3740.78,0.00033944,2]
[377264153,1754308242543,-495.91,0.00033944,2]
[377264155,1754308242554,-2640.72,0.00033944,2]
[377264156,1754308242563,-460.0,0.00033944,2]
[377264157,1754308242573,-592.67,0.00033944,2]
[377264158,1754308242583,-925.26,0.00033944,2]
[377264159,1754308242592,-460.0,0.00033944,2]
[377264160,1754308242602,-754.8,0.00033944,2]
[377264161,1754308242611,-529.5,0.00033944,2]
[377264162,1754308242621,-914.26,0.00033944,2]
[377264163,1754308242631,-474.05,0.00033944,2]
[377264164,1754308242644,-153.708351,0.00033944,14]
[377264165,1754308242655,-592.4,0.00033944,2]
[377264166,1754308242665,-151.0,0.00033944,14]
[377264167,1754308242674,-151.626342,0.00033944,14]
[377264168,1754308242684,-1920.41,0.00033944,2]
[377264169,1754308242693,-841.39,0.00033944,2]
[377264170,1754308242702,-487.27,0.00033944,2]
[377264171,1754308242712,-151.0,0.00033944,14]
[377264173,1754308242722,-642.98,0.00033944,2]
[377264174,1754308242731,-151.0,0.00033944,14]
[377264175,1754308242740,-1987.48,0.00033944,2]
[377264176,1754308242750,-1101.5,0.00033944,2]
[377264177,1754308242759,-151.0,0.00033944,14]
[377264178,1754308242768,-460.0,0.00033944,2]
[377264179,1754308242777,-833.04,0.00033944,2]
[377264180,1754308242787,-1564.73,0.00033944,2]
[377264201,1754308243004,-1201.04,0.00033944,2]
[377264203,1754308243013,-490.22600232,0.00033944,2]
[377264205,1754308243024,-460.0,0.00033944,2]
[377264207,1754308243033,-746.64,0.00033944,2]
[377264209,1754308243043,-4084.92,0.00033944,2]
[377264211,1754308243052,-460.0,0.00033944,2]
[377264213,1754308243062,-2212.3,0.00033944,2]
[377264215,1754308243072,-637.88,0.00033944,2]
[377264217,1754308243081,-460.0,0.00033944,2]
[377264218,1754308243090,-633.26,0.00033945,2]
[377264220,1754308243100,-460.0,0.00033945,2]
[377264222,1754308243109,-460.0,0.00033945,2]
[377264224,1754308243119,-460.0,0.00033945,2]
[377264226,1754308243129,-460.0,0.00033945,2]
[377264228,1754308243139,-460.0,0.00033945,2]
[377264230,1754308243148,-460.0,0.00033945,2]
[377264232,1754308243158,-1119.62,0.00033945,2]
[377264234,1754308243167,-663.49,0.00033945,2]
[377264236,1754308243176,-460.0,0.00033945,2]
[377264238,1754308243186,-1845.63,0.00033945,2]
[377264240,1754308243195,-460.0,0.00033945,2]
[377264242,1754308243204,-460.0,0.00033945,2]
[377264244,1754308243213,-460.0,0.00033945,2]
[377264246,1754308243222,-920.06,0.00033945,2]
[377264248,1754308243232,-460.0,0.00033945,2]
[377264251,1754308243242,-487.91,0.00033945,2]
[377264254,1754308243251,-1387.74,0.00033945,2]
[377264256,1754308243260,-861.03,0.00033945,2]
[377264258,1754308243269,-460.0,0.00033945,2]
[377264260,1754308243278,-460.0,0.00033945,2]
[377264262,1754308243288,-460.0,0.00033945,2]
[377264264,1754308243298,-460.0,0.00033945,2]
[377264266,1754308243307,-460.0,0.00033945,2]
[377264268,1754308243317,-460.0,0.00033945,2]
[377264270,1754308243327,-1344.93,0.00033945,2]
[377264272,1754308243336,-460.0,0.00033945,2]
[377264274,1754308243346,-460.0,0.00033945,2]
[377264276,1754308243355,-1388.55,0.00033945,2]
[377264279,1754308243365,-603.72,0.00033945,2]
[377264281,1754308243376,-460.0,0.00033945,2]
[377264284,1754308243386,-460.0,0.00033945,2]
[377264287,1754308243398,-460.0,0.00033945,2]
[377264289,1754308243407,-460.0,0.00033945,2]
[377264291,1754308243417,-460.0,0.00033945,2]
[377264293,1754308243426,-444.68031786,0.00033945,2]
[377264295,1754308243436,-595.08,0.00033945,2]
[377264297,1754308243445,-460.0,0.00033945,2]
[377264299,1754308243454,-460.0,0.00033945,2]
[377264301,1754308243463,-1319.78,0.00033945,2]
[377264303,1754308243472,-991.06,0.00033945,2]
[377264305,1754308243481,-468.43991749,0.00033945,2]
[377264307,1754308243491,-777.44,0.00033945,2]
[377264309,1754308243500,-504.41857181,0.00033945,2]
[377264311,1754308243510,-460.0,0.00033945,2]
[377264313,1754308243520,-460.0,0.00033945,2]
[377264315,1754308243529,-600.63,0.00033945,2]
[377264317,1754308243539,-1879.63,0.00033945,2]
[377264319,1754308243548,-460.0,0.00033945,2]
[377264321,1754308243558,-460.0,0.00033945,2]
[377264323,1754308243567,-1345.17,0.00033945,2]
[377264325,1754308243577,-222.22336946,0.00033945,2]
[377264327,1754308243586,-560.68,0.00033945,2]
[377264329,1754308243595,-460.0,0.00033945,2]
[377264331,1754308243605,-460.0,0.00033945,2]
[377264333,1754308243614,-404.01596406,0.00033945,2]
[377264334,1754308243624,-460.0,0.00033945,2]
[377264337,1754308243637,-460.0,0.00033945,2]
[377264338,1754308243648,-460.0,0.00033945,2]
[377264340,1754308243657,-460.0,0.00033945,2]
[377264342,1754308243667,-151.0,0.00033945,14]
[377264344,1754308243676,-151.0,0.00033945,14]
[377264346,1754308243686,-460.0,0.00033945,2]
[377264348,1754308243695,-460.0,0.00033945,2]
[377264351,1754308243706,-151.0,0.00033945,14]
[377264352,1754308243715,-1086.72,0.00033945,2]
[377264354,1754308243725,-460.0,0.00033945,2]
[377264356,1754308243735,-151.0,0.00033945,14]
[377264358,1754308243744,-460.0,0.00033945,2]
[377264360,1754308243753,-464.44773315,0.00033945,2]
[377264362,1754308243762,-540.52,0.00033945,2]
[377264364,1754308243772,-460.0,0.00033945,2]
[377264366,1754308243782,-1123.3,0.00033945,2]
[377264368,1754308243792,-467.39538167,0.00033945,2]
[377264370,1754308243802,-460.0,0.00033945,2]
[377264372,1754308243811,-460.0,0.00033945,2]
[377264374,1754308243821,-460.0,0.00033945,2]
[377264376,1754308243830,-526.97,0.00033945,2]
[377264378,1754308243840,-151.0,0.00033945,14]
[377264380,1754308243849,-151.0,0.00033945,14]
[377264382,1754308243859,-460.0,0.00033945,2]
[377264384,1754308243868,-460.0,0.00033945,2]
[377264386,1754308243878,-151.0,0.00033945,14]
[377264388,1754308243888,-460.0,0.00033945,2]
[377264390,1754308243897,-151.0,0.00033945,14]
[377264392,1754308243907,-590.62,0.00033945,2]
[377264394,1754308243917,-230.784068,0.00033945,14]
[377264396,1754308243926,-151.0,0.00033945,14]
[377264398,1754308243936,-681.21,0.00033945,2]
[377264399,1754308243946,-151.0,0.00033945,14]
[377264401,1754308243958,-746.26,0.00033961,2]
[377264402,1754308243967,-862.9,0.00033961,2]
[377264403,1754308243977,-460.0,0.00033961,2]
[377264404,1754308243987,-501.04,0.00033961,2]
[377264405,1754308243997,-460.0,0.00033961,2]
[377264406,1754308244006,-487.38,0.00033961,2]
[377264407,1754308244016,-1696.42,0.00033961,2]
[377264408,1754308244025,-151.579419,0.00033961,14]
[377264409,1754308244034,-1619.61,0.00033961,2]
[377264410,1754308244044,-502.24375699,0.00033973,5]
[377264411,1754308244053,-590.54686274,0.00033973,5]
[377264412,1754308244062,-501.03740505,0.00033973,5]
[377264413,1754308244072,-596.88925025,0.00033973,5]
[377264414,1754308244081,-500.0,0.00033973,5]
[377264415,1754308244091,-501.18544269,0.00033973,2]
[377264416,1754308244101,-503.43793226,0.00033973,5]
[377264417,1754308244110,-500.0,0.00033973,5]
[377264418,1754308244119,-504.25892979,0.00033973,5]
[377264419,1754308244130,-501.04450038,0.00033973,5]
[377264420,1754308244139,-500.0,0.00033973,5]
[377264421,1754308244149,-501.17661902,0.00033973,5]
[377264422,1754308244158,-500.0,0.00033973,5]
[377264423,1754308244168,-225.47287664,0.00033973,5]
[377264424,1754308244178,-631.79656268,0.00033973,5]
[377264425,1754308244187,-500.0,0.00033973,5]
[377264426,1754308244196,-500.0,0.00033973,5]
[377264427,1754308244205,-500.0,0.00033979,7]
[377264428,1754308244215,-151.0,0.00033979,14]
[377264429,1754308244224,-151.0,0.00033979,14]
[377264430,1754308244233,-151.0,0.00033979,14]
[377264431,1754308244243,-246.72608,0.00033979,14]
[377264432,1754308244253,-931.95,0.00033989,2]
[377264433,1754308244263,-460.0,0.00033989,2]
[377264434,1754308244273,-460.0,0.00033989,2]
[377264435,1754308244282,-460.0,0.00033989,2]
[377264436,1754308244292,-460.0,0.00033989,2]
[377264437,1754308244301,-460.0,0.00033989,2]
[377264438,1754308244310,-460.0,0.00033989,2]
[377264439,1754308244319,-478.14429707,0.00033989,2]
[377264440,1754308244329,-460.0,0.00033989,2]
[377264441,1754308244338,-460.0,0.00033989,2]
[377264442,1754308244347,-460.0,0.00033989,2]
[377264443,1754308244356,-460.0,0.00033989,2]
[377264444,1754308244366,-460.0,0.00033989,2]
[377264445,1754308244376,-581.39,0.00033989,2]
[377264446,1754308244388,-460.0,0.00033989,2]
[377264447,1754308244400,-462.82856911,0.00033989,2]
[377264449,1754308244409,-525.23,0.00033989,2]
[377264450,1754308244419,-460.0,0.00033989,2]
[377264451,1754308244430,-460.0,0.00033989,2]
[377264452,1754308244439,-460.0,0.00033989,2]
[377264454,1754308244449,-460.0,0.00033989,2]
[377264456,1754308244459,-467.50197866,0.00033989,2]
[377264457,1754308244468,-460.0,0.00033989,2]
[377264459,1754308244479,-500.0,0.00033989,2]
[377264461,1754308244489,-460.0,0.00033989,2]
[377264463,1754308244497,-460.0,0.00033989,2]
[377264465,1754308244507,-460.0,0.00033989,2]
[377264467,1754308244516,-460.0,0.00033989,2]
[377264469,1754308244526,-460.0,0.00033989,2]
[377264471,1754308244535,-461.27303679,0.00033989,2]
[377264473,1754308244545,-460.0,0.00033989,2]
[377264475,1754308244554,-460.0,0.00033989,2]
[377264477,1754308244565,-460.0,0.00033989,2]
[377264487,1754308244668,-353.0648171,0.00033989,2]
[377264489,1754308244678,-738.76,0.00033989,2]
[377264491,1754308244687,-511.24,0.00033989,2]
[377264493,1754308244697,-460.0,0.00033989,2]
[377264495,1754308244706,-460.0,0.00033989,2]
[377264497,1754308244716,-665.53,0.00033989,2]
[377264499,1754308244726,-587.21,0.00033989,2]
[377264501,1754308244736,-460.0,0.00033989,2]
[377264503,1754308244746,-460.0,0.00033989,2]
[377264505,1754308244755,-460.0,0.00033989,2]
[377264507,1754308244766,-460.0,0.00033989,2]
[377264509,1754308244775,-460.0,0.00033989,2]
[377264511,1754308244785,-460.0,0.00033989,2]
[377264513,1754308244794,-460.0,0.00033989,2]
[377264515,1754308244805,-313.88440839,0.00033989,2]
[377264516,1754308244815,-460.0,0.00033989,2]
[377264518,1754308244824,-464.28,0.00033989,2]
[377264520,1754308244833,-460.0,0.00033989,2]
[377264522,1754308244845,-460.0,0.00033989,2]
[377264524,1754308244854,-927.28,0.00033989,2]
[377264526,1754308244863,-460.0,0.00033989,2]
[377264528,1754308244872,-460.0,0.00033989,2]
[377264530,1754308244882,-460.0,0.00033989,2]
[377264532,1754308244891,-462.7298125,0.00033989,2]
[377264534,1754308244901,-490.19,0.00033989,2]
[377264536,1754308244910,-460.0,0.00033989,2]
[377264537,1754308244920,-460.0,0.00033989,2]
[377264539,1754308244930,-460.0,0.00033989,2]
[377264541,1754308244939,-460.0,0.00033989,2]
[377264543,1754308244949,-460.0,0.00033989,2]
[377264546,1754308244965,-183.348641,0.00033989,14]
[377264547,1754308244975,-151.0,0.00033989,14]
[377264549,1754308244984,-151.0,0.00033989,14]
[377264551,1754308244996,-151.0,0.00033989,14]
[377264553,1754308245006,-151.0,0.00033989,14]
[377264555,1754308245015,-151.0,0.00033989,14]
[377264557,1754308245024,-151.0,0.00033989,14]
[377264559,1754308245034,-151.0,0.00033989,14]
[377264561,1754308245044,-151.0,0.00033989,14]
[377264563,1754308245054,-963.42,0.00033989,2]
[377264565,1754308245065,-460.0,0.00033989,2]
[377264567,1754308245075,-870.03,0.00033989,2]
[377264569,1754308245084,-6689.53,0.00033989,2]
[377264571,1754308245094,-460.0,0.00033989,2]
[377264573,1754308245104,-6765.93,0.00034,14]
[377264575,1754308245114,-151.0,0.00034,12]
[377264577,1754308245123,-160.0,0.00034,2]
[377264578,1754308245132,-259.0,0.00034032,120]
[377264580,1754308245141,-259.0,0.00034042,120]
[377264582,1754308245151,-259.0,0.00034052,120]
[377264584,1754308245161,-312.16666667,0.00034052,120]
[377264586,1754308245170,-460.0,0.00034062,2]
[377264588,1754308245180,-151.0,0.00034062,14]
[377264590,1754308245189,-460.0,0.00034062,2]
[377264592,1754308245198,-460.0,0.00034062,2]
[377264594,1754308245208,-644.47,0.00034062,2]
[377264596,1754308245217,-648.89,0.00034062,2]
[377264597,1754308245227,-200.0,0.00034098,120]
[377264599,1754308245236,-238.03201217,0.000341,7]
[377264601,1754308245245,-151.0,0.000341,11]
[377264603,1754308245255,-3796.56278032,0.00034107,30]
[377264605,1754308245264,-153.0,0.0003411,30]
[377264607,1754308245274,-153.0,0.0003411,30]
[377264609,1754308245284,-153.0,0.0003411,30]
[377264611,1754308245293,-1000.0,0.00034121,5]
[377264613,1754308245303,-151.0,0.00034134,14]
[377264615,1754308245311,-151.0,0.00034134,14]
[377264617,1754308245321,-460.0,0.00034134,2]
[377264619,1754308245330,-460.0,0.00034134,2]
[377264621,1754308245339,-607.5,0.00034134,2]
[377264622,1754308245348,-656.62,0.00034134,2]
[377264624,1754308245357,-460.0,0.00034134,2]
[377264626,1754308245367,-460.0,0.00034134,2]
[377264628,1754308245376,-16436.53,0.00034134,2]
[377264629,1754308245386,-500.0,0.00034142,120]
[377264631,1754308245399,-2737.01,0.00034161,2]
[377264633,1754308245409,-151.0,0.000342,13]
[377264635,1754308245418,-460.0,0.00034206,2]
[377264637,1754308245428,-460.0,0.00034206,2]
[377264639,1754308245438,-460.0,0.00034206,2]
[377264641,1754308245448,-460.0,0.00034206,2]
[377264643,1754308245458,-616.68,0.00034206,2]
[377264645,1754308245467,-460.0,0.00034206,2]
[377264647,1754308245476,-649.19,0.00034206,2]
[377264649,1754308245485,-1117.69,0.00034206,2]
[377264651,1754308245494,-1011.78,0.00034206,2]
[377264652,1754308245504,-1738.71,0.00034206,2]
[377264654,1754308245514,-460.0,0.00034206,2]
[377264656,1754308245523,-245.04736328,0.00034206,2]
[377264658,1754308245532,-460.0,0.00034206,2]
[377264660,1754308245542,-460.0,0.00034206,2]
[377264662,1754308245551,-460.0,0.00034206,2]
[377264664,1754308245561,-494.54,0.00034206,2]
[377264666,1754308245571,-460.0,0.00034206,2]
[377264668,1754308245580,-610.51,0.00034206,2]
[377264670,1754308245589,-805.44,0.00034206,2]
[377264671,1754308245598,-460.0,0.00034206,2]
[377264673,1754308245608,-624.81,0.00034206,2]
[377264675,1754308245618,-1163.47,0.00034206,2]
[377264677,1754308245628,-1355.16,0.00034206,2]
[377264679,1754308245637,-460.0,0.00034206,2]
[377264681,1754308245647,-558.25,0.00034206,2]
[377264683,1754308245656,-489.89,0.00034206,2]
[377264685,1754308245666,-503.45,0.00034206,2]
[377264687,1754308245676,-1342.8,0.00034206,2]
[377264688,1754308245685,-959.37,0.00034206,2]
[377264690,1754308245695,-460.0,0.00034206,2]
[377264692,1754308245704,-539.31,0.00034206,2]
[377264694,1754308245713,-151.0,0.00034208,14]
[377264696,1754308245722,-251.49345,0.00034208,14]
[377264698,1754308245732,-460.0,0.00034208,2]
[377264700,1754308245741,-151.0,0.00034208,14]
[377264702,1754308245750,-460.0,0.00034208,2]
[377264704,1754308245760,-151.0,0.00034208,14]
[377264706,1754308245770,-151.0,0.00034208,14]
[377264707,1754308245780,-500.41,0.00034208,2]
[377264709,1754308245790,-151.0,0.00034208,14]
[377264711,1754308245800,-460.0,0.00034208,2]
[377264713,1754308245810,-460.0,0.00034208,2]
[377264715,1754308245820,-460.0,0.00034208,2]
[377264717,1754308245829,-460.0,0.00034208,2]
[377264719,1754308245838,-151.0,0.00034209,14]
[377264721,1754308245847,-153.160609,0.00034209,14]
[377264723,1754308245857,-151.0,0.00034209,14]
[377264725,1754308245866,-151.0,0.00034209,14]
[377264727,1754308245877,-151.0,0.00034209,14]
[377264729,1754308245886,-174.912405,0.00034209,14]
[377264730,1754308245895,-460.0,0.00034218,2]
[377264732,1754308245904,-460.0,0.00034218,2]
[377264734,1754308245914,-9893.33,0.00034218,2]
[377264736,1754308245924,-512.03,0.00034218,2]
[377264738,1754308245933,-678.4,0.00034218,2]
[377264740,1754308245942,-460.0,0.00034218,2]
[377264742,1754308245951,-3133.21,0.00034218,2]
[377264744,1754308245961,-10030.68,0.00034218,2]
[377264746,1754308245970,-803.44,0.00034218,2]
[377264748,1754308245979,-151.0,0.00034218,14]
[377264750,1754308245988,-151.0,0.00034218,14]
[377264751,1754308245999,-151.0,0.00034218,14]
[377264753,1754308246008,-4739.37,0.00034218,2]
[377264755,1754308246018,-151.0,0.00034218,14]
[377264757,1754308246027,-151.0,0.00034218,14]
[377264759,1754308246037,-795.49,0.00034218,2]
[377264761,1754308246046,-460.0,0.00034218,2]
[377264763,1754308246056,-460.0,0.00034218,2]
[377264765,1754308246065,-460.0,0.00034218,2]
[377264767,1754308246075,-3740.78,0.00034218,2]
[377264769,1754308246084,-495.91,0.00034218,2]
[377264771,1754308246093,-2640.72,0.00034218,2]
[377264773,1754308246102,-460.0,0.00034218,2]
[377264775,1754308246112,-592.67,0.00034218,2]
[377264776,1754308246122,-925.26,0.00034218,2]
[377264778,1754308246134,-460.0,0.00034218,2]
[377264780,1754308246144,-754.8,0.00034218,2]
[377264782,1754308246153,-529.5,0.00034218,2]
[377264784,1754308246162,-914.26,0.00034218,2]
[377264786,1754308246171,-474.05,0.00034218,2]
[377264788,1754308246181,-592.4,0.00034218,2]
[377264790,1754308246190,-1920.41,0.00034218,2]
[377264792,1754308246200,-841.39,0.00034218,2]
[377264794,1754308246209,-487.27,0.00034218,2]
[377264796,1754308246221,-642.98,0.00034218,2]
[377264798,1754308246230,-1987.48,0.00034218,2]
[377264800,1754308246239,-1101.5,0.00034218,2]
[377264801,1754308246249,-460.0,0.00034218,2]
[377264803,1754308246258,-833.04,0.00034218,2]
[377264805,1754308246269,-1564.73,0.00034218,2]
[377264807,1754308246279,-155.294016,0.00034218,14]
[377264809,1754308246290,-1201.04,0.00034218,2]
[377264811,1754308246300,-151.0,0.00034218,14]
[377264813,1754308246309,-151.0,0.00034218,14]
[377264815,1754308246318,-460.0,0.00034218,2]
[377264817,1754308246327,-151.0,0.00034218,14]
[377264819,1754308246336,-746.64,0.00034218,2]
[377264820,1754308246346,-4084.92,0.00034218,2]
[377264822,1754308246355,-460.0,0.00034218,2]
[377264824,1754308246365,-2212.3,0.00034218,2]
[377264826,1754308246376,-637.88,0.00034218,2]
[377264828,1754308246386,-151.0,0.00034218,14]
[377264830,1754308246399,-460.0,0.00034218,2]
[377264832,1754308246408,-151.0,0.00034218,14]
[377264834,1754308246418,-633.26,0.00034219,2]
[377264836,1754308246427,-247.33424276,0.00034219,2]
[377264838,1754308246439,-460.0,0.00034219,2]
[377264840,1754308246448,-548.11537204,0.00034219,2]
[377264842,1754308246457,-460.0,0.00034219,2]
[377264844,1754308246467,-460.0,0.00034219,2]
[377264855,1754308246476,-460.0,0.00034219,2]
[377264857,1754308246576,-1119.62,0.00034219,2]
[377264859,1754308246586,-663.49,0.00034219,2]
[377264861,1754308246595,-460.0,0.00034219,2]
[377264863,1754308246605,-1845.63,0.00034219,2]
[377264865,1754308246614,-460.0,0.00034219,2]
[377264867,1754308246623,-460.0,0.00034219,2]
[377264869,1754308246633,-460.0,0.00034219,2]
[377264871,1754308246642,-920.06,0.00034219,2]
[377264873,1754308246652,-460.0,0.00034219,2]
[377264875,1754308246661,-487.91,0.00034219,2]
[377264877,1754308246670,-1387.74,0.00034219,2]
[377264878,1754308246679,-861.03,0.00034219,2]
[377264880,1754308246689,-460.0,0.00034219,2]
[377264882,1754308246699,-460.0,0.00034219,2]
[377264884,1754308246708,-460.0,0.00034219,2]
[377264886,1754308246718,-460.0,0.00034219,2]
[377264888,1754308246728,-460.0,0.00034219,2]
[377264890,1754308246738,-460.0,0.00034219,2]
[377264892,1754308246748,-1344.93,0.00034219,2]
[377264894,1754308246757,-460.0,0.00034219,2]
[377264896,1754308246767,-460.0,0.00034219,2]
[377264898,1754308246776,-1388.55,0.00034219,2]
[377264900,1754308246785,-603.72,0.00034219,2]
[377264902,1754308246795,-460.0,0.00034219,2]
[377264904,1754308246804,-151.0,0.00034219,14]
[377264906,1754308246813,-460.0,0.00034219,2]
[377264908,1754308246823,-460.0,0.00034219,2]
[377264910,1754308246832,-151.0,0.00034219,14]
[377264911,1754308246842,-460.0,0.00034219,2]
[377264913,1754308246851,-151.0,0.00034219,14]
[377264915,1754308246861,-460.0,0.00034219,2]
[377264917,1754308246870,-595.08,0.00034219,2]
[377264919,1754308246879,-460.0,0.00034219,2]
[377264921,1754308246888,-865.503452,0.00034219,14]
[377264923,1754308246898,-865.503452,0.00034219,14]
[377264925,1754308246906,-151.0,0.00034219,14]
[377264927,1754308246916,-151.0,0.00034219,14]
[377264929,1754308246925,-460.0,0.00034219,2]
[377264931,1754308246934,-1319.78,0.00034219,2]
[377264933,1754308246943,-991.06,0.00034219,2]
[377264935,1754308246953,-777.44,0.00034219,2]